bitfinex-derivatives/quotes_SOLF0:USTF0_20260110
["timestamp","ask_amount","ask_price","bid_price","bid_amount"]
[1768025883227,5.55064773,135.87,135.8,0.3260758]
[1768025883427,0.32716497,135.88,135.8,0.3761513]
[1768025883626,5.54846874,135.87,135.8,0.3761513]
[1768025883827,6.95926497,135.88,135.8,0.3761513]
[1768025884040,5.54845813,135.87,135.8,0.3761513]
[1768025884230,6.95926497,135.88,135.81,0.31154987]
[1768025885026,0.32716497,135.88,135.83,0.36215048]
[1768025887327,0.32716497,135.88,135.83,6.99655048]
[1768025887735,0.30311618,135.91,135.84,0.31154987]
[1768025888031,5.84096021,135.9,135.84,0.31154987]
[1768025888328,0.30311618,135.9,135.84,0.31154987]
[1768025889733,0.30311618,135.9,135.86,0.04723238]
[1768025902742,0.30311618,135.89,135.84,0.31154987]
[1768025906645,0.04798836,135.88,135.84,0.31154987]
[1768025924263,0.3748494,135.88,135.78,0.30814228]
[1768025924465,0.32686104,135.87,135.81,0.30814228]
[1768025925977,5.81301734,135.86,135.81,0.30814228]
[1768025926179,0.32686104,135.86,135.81,0.30814228]
[1768025929582,0.04669894,135.85,135.81,0.30814228]
[1768025942182,0.31200664,135.84,135.78,87.0]
[1768025942375,0.31200664,135.84,135.77,0.31670235]
[1768025943178,0.04796298,135.82,135.77,0.31670235]
[1768025946586,7.01398257,135.82,135.77,0.31670235]
[1768025947898,7.01398257,135.82,135.72,6.6395]
[1768025947899,6.96651959,135.81,135.72,6.6395]
[1768025948103,0.33091959,135.81,135.68,190.3547]
[1768025948287,0.33091959,135.81,135.7,1.1569456]
[1768025948786,0.05319068,135.76,135.7,1.1569456]
[1768025948987,0.05319068,135.76,135.71,6.6402]
[1768025949994,0.05319068,135.76,135.72,0.31640591]
[1768025950690,0.05319068,135.76,135.72,0.36613221]
[1768025953589,103.1674,135.88,135.75,9.17899107]
[1768025953795,103.1606,135.89,135.76,87.06]
[1768025953987,6.6326,135.87,135.77,0.31640591]
[1768025954287,6.6326,135.87,135.79,0.31640591]
[1768025955000,6.6333,135.86,135.79,0.31640591]
[1768025955393,0.05652546,135.84,135.79,0.31640591]
[1768025955794,0.38744505,135.84,135.79,0.31640591]
[1768025956601,0.38744505,135.84,135.77,0.31640591]
[1768025966005,0.33091959,135.83,135.77,0.31640591]
[1768025972508,6.03341514,135.82,135.77,0.31640591]
[1768025972704,6.03341514,135.81,135.79,0.04658151]
[1768025973007,0.33091959,135.83,135.77,0.31640591]
[1768025973207,6.03341352,135.82,135.77,0.31640591]
[1768025973407,6.03341352,135.81,135.77,0.31640591]
[1768025973608,0.33091959,135.83,135.77,0.31640591]
[1768025973911,6.34066045,135.82,135.77,0.31640591]
[1768025974106,6.03398182,135.81,135.77,0.31640591]
[1768025974308,0.05564865,135.81,135.77,0.31640591]
[1768025974610,6.34105456,135.8,135.74,0.32045903]
[1768025974913,0.30667863,135.8,135.74,0.32045903]
[1768025977822,6.03560858,135.79,135.74,0.32045903]
[1768025978018,0.30667863,135.8,135.74,0.32045903]
[1768025978221,6.03560858,135.79,135.74,0.32045903]
[1768025978521,0.30667863,135.8,135.74,0.32045903]
[1768025978715,0.04701372,135.78,135.74,0.32045903]
[1768025979322,0.04701372,135.78,135.74,6.95925903]
[1768025980121,0.04701372,135.78,135.75,0.32045903]
[1768025980923,0.04701372,135.78,135.74,6.6388]
[1768025985316,0.04701372,135.78,135.74,6.95925903]
[1768025986828,0.35369235,135.78,135.72,6.96015903]
[1768025987215,0.35369235,135.78,135.73,0.32045903]
[1768025987420,0.30667863,135.78,135.73,0.32045903]
[1768025987824,0.05029566,135.77,135.73,0.32045903]
[1768025993235,0.30667863,135.79,135.74,0.30656881]
[1768025993435,6.04306392,135.78,135.74,0.30656881]
[1768025993636,0.30667863,135.79,135.74,0.30656881]
[1768025997231,0.32739252,135.81,135.75,0.30656881]
[1768025997438,6.04396065,135.8,135.75,0.30656881]
[1768025997630,0.32739252,135.81,135.75,0.30656881]
[1768025997831,6.04396894,135.8,135.75,0.30656881]
[1768025998135,0.32739252,135.81,135.75,0.30656881]
[1768025998436,6.01166648,135.8,135.75,0.30656881]
[1768025998636,0.32739252,135.81,135.75,6.94486881]
[1768025998836,6.01166488,135.8,135.75,6.94486881]
[1768025999037,0.32739252,135.81,135.75,6.94486881]
[1768025999239,6.01166488,135.8,135.75,6.94486881]
[1768025999439,0.32739252,135.81,135.76,0.30656881]
[1768025999639,6.01322294,135.8,135.76,0.30656881]
[1768025999834,0.32739252,135.81,135.76,0.30656881]
[1768026000033,6.01322294,135.8,135.76,0.30656881]
[1768026000233,6.96219252,135.83,135.76,0.30656881]
[1768026000535,6.34138512,135.82,135.76,0.30656881]
[1768026000733,6.0139926,135.81,135.76,0.30656881]
[1768026000936,6.0139926,135.8,135.76,0.30656881]
[1768026001138,0.32739252,135.82,135.76,0.30656881]
[1768026001340,6.01488097,135.81,135.76,0.30656881]
[1768026001538,6.01488097,135.8,135.76,0.30656881]
[1768026001738,0.32739252,135.82,135.76,0.30656881]
[1768026001931,6.01488441,135.81,135.77,0.30656881]
[1768026002243,0.32739252,135.84,135.77,0.30656881]
[1768026002442,6.01568958,135.83,135.77,0.30656881]
[1768026002631,0.32739252,135.86,135.78,0.30656881]
[1768026003630,0.32739252,135.86,135.79,0.3297704]
[1768026004539,0.31111839,135.85,135.79,0.3297704]
[1768026009149,0.31111839,135.85,135.77,6.9670704]
[1768026009448,0.31111839,135.85,135.78,0.3297704]
[1768026011743,0.31111839,135.84,135.78,0.3297704]
[1768026014739,5.83730724,135.83,135.78,0.3297704]
[1768026014936,0.31111839,135.84,135.78,0.3297704]
[1768026015147,5.83730724,135.83,135.78,0.3297704]
[1768026015342,0.31111839,135.84,135.78,0.3297704]
[1768026015541,5.83700063,135.83,135.78,0.3297704]
[1768026015742,0.31111839,135.84,135.78,0.3297704]
[1768026015945,5.83700063,135.83,135.78,0.3297704]
[1768026016242,0.31111839,135.84,135.78,0.3297704]
[1768026016445,5.83670476,135.83,135.78,0.3297704]
[1768026016646,0.31111839,135.84,135.78,0.3297704]
[1768026016950,5.83670476,135.83,135.78,0.3297704]
[1768026017151,0.31111839,135.84,135.78,0.3297704]
[1768026017449,5.83641862,135.83,135.78,0.3297704]
[1768026017651,0.31111839,135.84,135.78,0.3297704]
[1768026017850,5.83641862,135.83,135.78,0.3297704]
[1768026018051,0.31111839,135.84,135.78,0.3297704]
[1768026018249,5.83644238,135.83,135.78,0.3297704]
[1768026018439,0.31111839,135.84,135.78,0.3297704]
[1768026018644,5.83614406,135.83,135.78,0.3297704]
[1768026018841,0.31111839,135.84,135.78,0.3297704]
[1768026019043,5.83614406,135.83,135.78,0.3297704]
[1768026019249,0.31111839,135.84,135.78,0.3297704]
[1768026019450,5.83588096,135.83,135.78,0.3297704]
[1768026019752,0.31111839,135.84,135.78,0.3297704]
[1768026019953,5.83588096,135.83,135.78,0.3297704]
[1768026020151,0.31111839,135.84,135.78,0.3297704]
[1768026020352,5.83565528,135.83,135.78,0.3297704]
[1768026020553,0.31111839,135.84,135.78,0.3297704]
[1768026020747,5.83565676,135.83,135.78,0.3297704]
[1768026020947,0.31111839,135.84,135.78,0.3297704]
[1768026021152,5.83565676,135.83,135.78,0.3297704]
[1768026021352,0.31111839,135.84,135.78,0.3297704]
[1768026021552,5.83548293,135.83,135.78,0.3297704]
[1768026021754,0.31111839,135.84,135.78,0.3297704]
[1768026021954,5.83549403,135.83,135.78,0.3297704]
[1768026022149,0.31111839,135.84,135.78,0.3297704]
[1768026022351,5.83530748,135.83,135.78,0.3297704]
[1768026022649,0.31111839,135.84,135.78,0.3297704]
[1768026022845,5.83530748,135.83,135.78,0.3297704]
[1768026023043,0.31111839,135.84,135.78,0.3297704]
[1768026023244,5.83483723,135.83,135.78,0.3297704]
[1768026023451,0.31111839,135.84,135.78,0.3297704]
[1768026023749,5.83461878,135.83,135.78,0.3297704]
[1768026023950,0.31111839,135.84,135.78,0.3297704]
[1768026024154,5.83461878,135.83,135.78,0.3297704]
[1768026024344,0.31111839,135.84,135.78,0.3297704]
[1768026024546,5.83431796,135.83,135.78,0.3297704]
[1768026024744,0.31111839,135.84,135.78,0.3297704]
[1768026024954,5.83431796,135.83,135.78,0.3297704]
[1768026025150,0.31111839,135.84,135.78,0.3297704]
[1768026025455,5.83438032,135.83,135.78,0.3297704]
[1768026025654,0.31111839,135.84,135.78,0.3297704]
[1768026025856,5.83438213,135.83,135.78,0.3297704]
[1768026026157,0.31111839,135.84,135.78,0.3297704]
[1768026026352,5.83448153,135.83,135.78,0.3297704]
[1768026026561,0.31111839,135.84,135.78,0.3297704]
[1768026026859,5.83448153,135.83,135.78,0.3297704]
[1768026027059,0.31111839,135.84,135.78,0.3297704]
[1768026027262,5.83465323,135.83,135.78,0.3297704]
[1768026027461,0.31111839,135.84,135.78,0.3297704]
[1768026027760,5.83462037,135.83,135.78,0.3297704]
[1768026028060,0.31111839,135.84,135.78,0.3297704]
[1768026028255,5.83480322,135.83,135.78,0.3297704]
[1768026028455,0.31111839,135.84,135.78,0.3297704]
[1768026028655,5.83479597,135.83,135.78,0.3297704]
[1768026028858,0.31111839,135.84,135.78,0.3297704]
[1768026029057,5.83479597,135.83,135.78,0.3297704]
[1768026029257,0.31111839,135.84,135.78,0.3297704]
[1768026029458,5.83501061,135.83,135.78,0.3297704]
[1768026029758,0.31111839,135.84,135.78,0.3297704]
[1768026029959,6.146129,135.83,135.78,0.3297704]
[1768026030158,0.31111839,135.83,135.78,0.3297704]
[1768026040173,5.81013248,135.82,135.78,0.3297704]
[1768026040374,0.31111839,135.83,135.78,0.3297704]
[1768026040565,5.81013399,135.82,135.78,0.3297704]
[1768026040762,0.31111839,135.83,135.78,0.3297704]
[1768026041071,5.81013399,135.82,135.78,0.3297704]
[1768026041265,0.31111839,135.83,135.78,0.3297704]
[1768026041461,5.81215707,135.82,135.78,0.3297704]
[1768026041673,0.31111839,135.83,135.78,0.3297704]
[1768026041880,5.81215707,135.82,135.78,0.3297704]
[1768026042080,0.31111839,135.83,135.78,0.3297704]
[1768026042280,5.81418043,135.82,135.78,0.3297704]
[1768026042481,0.31111839,135.83,135.78,0.3297704]
[1768026042673,5.81418043,135.82,135.78,0.3297704]
[1768026042878,0.31111839,135.83,135.78,0.3297704]
[1768026043078,5.81418043,135.82,135.78,0.3297704]
[1768026043282,0.31111839,135.83,135.78,0.3297704]
[1768026043481,5.81542033,135.82,135.78,0.3297704]
[1768026043681,0.31111839,135.83,135.78,0.3297704]
[1768026043978,5.7457269,135.82,135.78,0.3297704]
[1768026044179,0.31111839,135.83,135.78,0.3297704]
[1768026044385,5.74720742,135.82,135.78,0.3297704]
[1768026044681,0.31111839,135.83,135.78,0.3297704]
[1768026044871,5.74720742,135.82,135.78,0.3297704]
[1768026045074,0.31111839,135.83,135.78,0.3297704]
[1768026045274,5.74720875,135.82,135.78,0.3297704]
[1768026045575,0.32048389,135.84,135.78,0.3297704]
[1768026045777,5.74755105,135.83,135.78,0.3297704]
[1768026045973,0.32048389,135.84,135.78,0.3297704]
[1768026046278,5.74935535,135.83,135.78,0.3297704]
[1768026046580,5.74935535,135.82,135.78,0.3297704]
[1768026046880,0.32048389,135.84,135.78,0.3297704]
[1768026047080,5.74462059,135.83,135.78,0.3297704]
[1768026047282,5.74462059,135.82,135.78,0.3297704]
[1768026047475,0.32048389,135.84,135.78,0.3297704]
[1768026047677,5.74498068,135.83,135.78,0.3297704]
[1768026047976,5.74498068,135.82,135.78,0.3297704]
[1768026048176,0.32048389,135.84,135.78,0.3297704]
[1768026048377,5.74511757,135.83,135.78,0.3297704]
[1768026048578,5.74511757,135.82,135.78,0.3297704]
[1768026048779,0.32048389,135.84,135.78,0.3297704]
[1768026049072,5.74511757,135.83,135.78,0.3297704]
[1768026049278,5.74511757,135.82,135.78,0.3297704]
[1768026049578,0.32048389,135.84,135.78,0.3297704]
[1768026049785,5.74368391,135.83,135.78,0.3297704]
[1768026050084,5.74368391,135.82,135.78,0.3297704]
[1768026050285,0.32048389,135.84,135.78,0.3297704]
[1768026050487,5.74398199,135.83,135.78,0.3297704]
[1768026050786,5.74398199,135.82,135.78,0.3297704]
[1768026050987,0.32048389,135.84,135.78,0.3297704]
[1768026051191,6.04109172,135.83,135.78,0.3297704]
[1768026051390,5.72898691,135.82,135.78,0.3297704]
[1768026051686,0.31210481,135.83,135.78,0.3297704]
[1768026051886,5.72956434,135.82,135.78,0.3297704]
[1768026052084,0.31210481,135.83,135.78,0.3297704]
[1768026052292,5.7302543,135.82,135.78,6.9665704]
[1768026052481,0.31210481,135.83,135.78,6.9665704]
[1768026052683,5.73025135,135.82,135.78,6.9665704]
[1768026052882,0.31210481,135.86,135.79,6.94659287]
[1768026053190,6.04316211,135.85,135.79,6.94659287]
[1768026053491,0.31210481,135.85,135.8,6.94609287]
[1768026053784,0.31210481,135.87,135.81,0.31019287]
[1768026053986,5.71558801,135.86,135.81,6.94559287]
[1768026054288,0.31210481,135.87,135.81,6.94559287]
[1768026054584,5.71194119,135.86,135.81,6.94559287]
[1768026054785,0.31210481,135.87,135.81,6.94559287]
[1768026054985,5.7121711,135.86,135.81,6.94559287]
[1768026055284,0.31210481,135.87,135.81,6.94559287]
[1768026057594,0.31210481,135.87,135.82,0.31019287]
[1768026059583,6.6321,135.88,135.82,0.31019287]
[1768026059785,6.94420481,135.88,135.82,0.31019287]
[1768026060194,0.31210481,135.87,135.82,0.31019287]
[1768026062198,6.94480481,135.87,135.8,0.31019287]
[1768026062492,0.31210481,135.86,135.78,0.31019287]
[1768026062892,0.31210481,135.84,135.78,0.31019287]
[1768026065999,0.31210481,135.84,135.75,88.17798416]
[1768026066000,0.32777719,135.83,135.76,0.31999432]
[1768026067607,0.32777719,135.83,135.77,0.31999432]
[1768026083721,0.32777719,135.83,135.77,6.95729432]
[1768026083920,0.32777719,135.83,135.78,0.31999432]
[1768026089425,0.32777719,135.85,135.79,0.31999432]
[1768026089723,0.32777719,135.87,135.79,0.31999432]
[1768026090523,0.32777719,135.87,135.81,0.31999432]
[1768026104137,5.69137749,135.86,135.81,0.31999432]
[1768026104437,0.32777719,135.87,135.81,0.31999432]
[1768026104636,0.32777719,135.87,135.82,0.30870714]
[1768026106238,5.69145787,135.86,135.82,0.30870714]
[1768026106443,0.32777719,135.87,135.82,0.30870714]
[1768026106741,5.6913688,135.86,135.82,0.30870714]
[1768026106931,0.32777719,135.87,135.82,0.30870714]
[1768026107133,5.69137205,135.86,135.82,0.30870714]
[1768026107336,0.32777719,135.87,135.82,0.30870714]
[1768026107538,5.6913973,135.86,135.82,0.30870714]
[1768026107728,0.32777719,135.87,135.82,0.30870714]
[1768026107935,5.69140095,135.86,135.82,0.30870714]
[1768026108233,0.32777719,135.87,135.82,0.30870714]
[1768026113439,5.69134559,135.86,135.82,0.30870714]
[1768026113640,0.32777719,135.87,135.82,0.30870714]
[1768026113842,5.69137017,135.86,135.82,0.30870714]
[1768026114043,0.32777719,135.87,135.82,0.30870714]
[1768026114344,5.69137017,135.86,135.82,0.30870714]
[1768026114541,0.32777719,135.87,135.82,0.30870714]
[1768026114743,5.69158088,135.86,135.82,0.30870714]
[1768026114943,0.32777719,135.87,135.82,0.30870714]
[1768026115245,5.69158088,135.86,135.82,0.30870714]
[1768026115437,0.32777719,135.87,135.82,0.30870714]
[1768026115634,5.69168409,135.86,135.82,0.30870714]
[1768026115837,0.32777719,135.87,135.82,0.30870714]
[1768026116047,5.69168409,135.86,135.82,0.30870714]
[1768026116343,0.32777719,135.87,135.82,0.30870714]
[1768026116645,5.69182785,135.86,135.82,0.30870714]
[1768026116838,0.32777719,135.87,135.82,0.30870714]
[1768026117036,5.69182785,135.86,135.82,0.30870714]
[1768026117237,0.32777719,135.87,135.82,0.30870714]
[1768026117434,5.69199991,135.86,135.82,0.30870714]
[1768026117638,0.32777719,135.87,135.82,0.30870714]
[1768026117837,5.69199991,135.86,135.82,0.30870714]
[1768026118138,0.32777719,135.87,135.82,0.30870714]
[1768026118337,5.69199991,135.86,135.82,0.30870714]
[1768026118633,0.32777719,135.87,135.82,0.30870714]
[1768026118833,5.69219423,135.86,135.82,0.30870714]
[1768026119038,0.32777719,135.87,135.82,0.30870714]
[1768026119334,5.69219423,135.86,135.82,0.30870714]
[1768026119536,0.32777719,135.87,135.82,0.30870714]
[1768026119738,5.6924229,135.86,135.82,0.30870714]
[1768026119947,0.32777719,135.87,135.82,0.30870714]
[1768026120247,5.69240488,135.86,135.82,0.30870714]
[1768026120446,0.32777719,135.87,135.82,0.30870714]
[1768026120651,5.69256068,135.86,135.82,0.30870714]
[1768026120946,0.32777719,135.87,135.82,6.94360714]
[1768026121842,0.32491817,135.89,135.83,6.95470866]
[1768026122042,5.69282847,135.88,135.83,6.95470866]
[1768026122243,0.32491817,135.89,135.83,6.95470866]
[1768026122443,5.69235728,135.88,135.83,6.95470866]
[1768026122644,0.32491817,135.89,135.83,6.95470866]
[1768026145579,0.32491817,135.89,135.84,0.33238225]
[1768026164386,5.55773973,135.88,135.84,0.33238225]
[1768026164581,0.32491817,135.89,135.84,0.33238225]
[1768026164781,5.55773973,135.88,135.84,0.33238225]
[1768026164978,0.32491817,135.89,135.84,0.33238225]
[1768026165176,5.55773973,135.88,135.84,0.33238225]
[1768026165380,0.32491817,135.89,135.84,0.33238225]
[1768026165675,5.55776746,135.88,135.84,0.33238225]
[1768026165880,0.32491817,135.89,135.84,0.33238225]
[1768026166076,5.55776746,135.88,135.84,0.33238225]
[1768026166280,0.32491817,135.89,135.84,0.33238225]
[1768026166582,5.55931128,135.88,135.84,0.33238225]
[1768026166777,6.95661817,135.89,135.84,0.33238225]
[1768026166981,5.55906835,135.88,135.84,0.33238225]
[1768026167176,5.55914346,135.87,135.84,0.33238225]
[1768026167387,6.95661817,135.89,135.84,0.33238225]
[1768026167585,5.55911719,135.88,135.84,0.33238225]
[1768026167781,5.88246651,135.87,135.82,0.31030897]
[1768026167986,0.32334932,135.87,135.82,0.31030897]
[1768026168181,5.55735485,135.86,135.79,0.31030897]
[1768026168386,0.32334932,135.87,135.79,0.31030897]
[1768026168578,5.5578681,135.86,135.79,0.31030897]
[1768026168783,6.95604932,135.87,135.79,0.31030897]
[1768026168984,5.55789963,135.86,135.79,0.31030897]
[1768026169191,6.95604932,135.87,135.79,0.31030897]
[1768026169491,5.55529845,135.86,135.79,0.31030897]
[1768026169691,6.95604932,135.87,135.79,0.31030897]
[1768026169891,5.55531024,135.86,135.79,0.31030897]
[1768026170190,6.95604932,135.87,135.79,0.31030897]
[1768026170392,5.55356757,135.86,135.79,0.31030897]
[1768026170592,6.95604932,135.87,135.8,0.33247647]
[1768026170792,5.86984505,135.86,135.8,0.33247647]
[1768026170994,0.31627748,135.86,135.8,0.33247647]
[1768026187904,0.31627748,135.86,135.81,0.31431411]
[1768026212136,5.52521605,135.85,135.81,0.31431411]
[1768026212336,0.31627748,135.86,135.81,0.31431411]
[1768026230850,5.42559646,135.85,135.81,0.31431411]
[1768026231046,0.31627748,135.86,135.81,0.31431411]
[1768026231251,5.42556944,135.85,135.81,0.31431411]
[1768026231453,0.31627748,135.86,135.81,0.31431411]
[1768026231754,5.42552948,135.85,135.81,0.31431411]
[1768026231953,0.31627748,135.86,135.81,0.31431411]
[1768026232251,5.42552948,135.85,135.81,0.31431411]
[1768026232453,0.31627748,135.86,135.81,0.31431411]
[1768026232652,5.42549015,135.85,135.81,0.31431411]
[1768026232858,0.31627748,135.86,135.81,0.31431411]
[1768026233153,5.42549015,135.85,135.81,0.31431411]
[1768026233349,0.31627748,135.86,135.81,0.31431411]
[1768026233657,5.42526189,135.85,135.81,0.31431411]
[1768026233855,0.31627748,135.86,135.81,0.31431411]
[1768026234058,5.42526189,135.85,135.81,0.31431411]
[1768026234257,0.31627748,135.86,135.81,0.31431411]
[1768026234454,5.42506557,135.85,135.81,0.31431411]
[1768026234658,0.31627748,135.86,135.81,0.31431411]
[1768026234852,5.42405719,135.85,135.81,0.31431411]
[1768026235054,0.31627748,135.86,135.81,0.31431411]
[1768026235255,5.423869,135.85,135.81,0.31431411]
[1768026235554,0.31627748,135.86,135.81,0.31431411]
[1768026235754,5.42369699,135.85,135.81,0.31431411]
[1768026235959,0.31627748,135.86,135.81,0.31431411]
[1768026236159,5.42369699,135.85,135.81,0.31431411]
[1768026236358,0.31627748,135.86,135.81,0.31431411]
[1768026236559,5.42354791,135.85,135.81,0.31431411]
[1768026236759,0.31627748,135.86,135.81,0.31431411]
[1768026236962,5.42354791,135.85,135.81,0.31431411]
[1768026237163,0.31627748,135.86,135.81,0.31431411]
[1768026237461,5.42354791,135.85,135.81,0.31431411]
[1768026237653,0.31627748,135.86,135.81,0.31431411]
[1768026237855,5.42343721,135.85,135.81,0.31431411]
[1768026238051,0.31627748,135.86,135.81,0.31431411]
[1768026238258,5.42342312,135.85,135.81,0.31431411]
[1768026238459,0.31627748,135.86,135.81,0.31431411]
[1768026238662,5.42331429,135.85,135.81,0.31431411]
[1768026238854,0.31627748,135.86,135.81,0.31431411]
[1768026239055,5.42331296,135.85,135.81,0.31431411]
[1768026239349,6.94937748,135.86,135.81,0.31431411]
[1768026239555,5.42321982,135.85,135.81,0.31431411]
[1768026239750,6.94937748,135.86,135.81,0.31431411]
[1768026239958,5.42321982,135.85,135.81,0.31431411]
[1768026240158,6.94937748,135.86,135.81,0.31431411]
[1768026240361,5.4232339,135.85,135.81,0.31431411]
[1768026240657,6.94937748,135.86,135.81,0.31431411]
[1768026240850,5.42323564,135.85,135.81,0.31431411]
[1768026241052,6.94937748,135.86,135.81,0.31431411]
[1768026241250,5.42314315,135.85,135.81,0.31431411]
[1768026241460,6.94937748,135.86,135.81,0.31431411]
[1768026244966,0.31627748,135.86,135.81,0.31431411]
[1768026250972,0.31383647,135.88,135.81,0.31431411]
[1768026251165,0.31383647,135.9,135.81,0.31431411]
[1768026251361,5.3718498,135.89,135.81,0.31431411]
[1768026251567,0.31383647,135.9,135.81,0.31431411]
[1768026251766,5.37179679,135.89,135.81,0.31431411]
[1768026252072,0.31383647,135.9,135.81,0.31431411]
[1768026252276,5.37179679,135.89,135.81,0.31431411]
[1768026252573,0.31383647,135.9,135.84,0.30399428]
[1768026265471,6.94493647,135.9,135.84,0.30399428]
[1768026265677,0.31383647,135.89,135.84,0.30399428]
[1768026267277,0.31383647,135.89,135.82,0.30399428]
[1768026268277,0.31383647,135.89,135.82,6.93889428]
[1768026270182,0.31383647,135.89,135.83,0.30399428]
[1768026277391,0.30598672,135.91,135.84,0.33191216]
[1768026278588,0.30598672,135.91,135.84,6.96591216]
[1768026280393,0.30598672,135.91,135.85,0.33191216]
[1768026292192,5.32812479,135.9,135.85,0.33191216]
[1768026292397,0.30598672,135.91,135.85,0.33191216]
[1768026292595,5.32812479,135.9,135.85,0.33191216]
[1768026292788,0.30598672,135.91,135.85,0.33191216]
[1768026292991,5.32812479,135.9,135.85,0.33191216]
[1768026293184,0.30598672,135.91,135.85,0.33191216]
[1768026293396,5.32941635,135.9,135.85,0.33191216]
[1768026293597,0.30598672,135.91,135.85,0.33191216]
[1768026293797,5.32940249,135.9,135.85,0.33191216]
[1768026293998,0.30598672,135.91,135.85,0.33191216]
[1768026294197,5.3293745,135.9,135.85,0.33191216]
[1768026294398,0.30598672,135.91,135.85,0.33191216]
[1768026294699,5.33106446,135.9,135.85,0.33191216]
[1768026294901,0.30598672,135.91,135.85,0.33191216]
[1768026295094,5.33106316,135.9,135.85,0.33191216]
[1768026295407,0.30598672,135.91,135.85,0.33191216]
[1768026295697,5.64379609,135.9,135.85,0.33191216]
[1768026295902,0.31024051,135.9,135.85,0.33191216]
[1768026301110,6.94074051,135.92,135.85,0.33191216]
[1768026301410,5.33509368,135.91,135.85,0.33191216]
[1768026301600,6.94074051,135.92,135.85,0.33191216]
[1768026301799,5.33504895,135.91,135.85,6.96541216]
[1768026302103,6.94074051,135.92,135.85,6.96541216]
[1768026302299,5.33422652,135.91,135.85,6.96541216]
[1768026302502,6.94074051,135.92,135.85,6.96541216]
[1768026302704,5.33422862,135.91,135.85,6.96541216]
[1768026302903,6.94074051,135.92,135.85,6.96541216]
[1768026303210,5.35031565,135.91,135.85,6.96541216]
[1768026303413,6.94074051,135.92,135.85,6.96541216]
[1768026303615,5.34957254,135.91,135.85,6.96541216]
[1768026303813,6.94074051,135.92,135.85,6.96541216]
[1768026304015,5.34957254,135.91,135.85,6.96541216]
[1768026304314,6.94074051,135.92,135.85,6.96541216]
[1768026304513,5.34890763,135.91,135.85,6.96541216]
[1768026304716,6.94074051,135.92,135.85,6.96541216]
[1768026304907,5.34890763,135.91,135.86,0.32897715]
[1768026305106,6.94074051,135.92,135.86,0.32897715]
[1768026305314,5.34834188,135.91,135.86,0.32897715]
[1768026305514,6.94074051,135.92,135.86,0.32897715]
[1768026305814,5.34834188,135.91,135.86,0.32897715]
[1768026306013,6.94074051,135.92,135.86,0.32897715]
[1768026306213,5.34834449,135.91,135.86,0.32897715]
[1768026306417,0.31024051,135.92,135.87,0.32897715]
[1768026308117,0.3141082,135.94,135.88,0.32897715]
[1768026308322,22.12,135.97,135.88,0.32897715]
[1768026308323,0.3141082,135.97,135.88,0.32897715]
[1768026308523,1.15693547,135.98,135.88,0.32897715]
[1768026308524,5.65859247,135.96,135.88,0.32897715]
[1768026308724,0.3141082,135.96,135.88,0.32897715]
[1768026309025,0.3141082,135.96,135.9,6.95987715]
[1768026316718,0.3141082,135.96,135.9,0.32897715]
[1768026333741,0.05288311,135.94,135.92,0.04705759]
[1768026347045,0.05288311,135.94,135.9,0.32897715]
[1768026354757,0.32665851,135.98,135.92,0.30249341]
[1768026355060,5.26379525,135.97,135.92,0.30249341]
[1768026355260,0.32665851,135.98,135.92,0.30249341]
[1768026369382,0.32665851,135.98,135.9,0.32432474]
[1768026370379,0.31255696,135.97,135.9,0.32432474]
[1768026373884,0.31255696,135.97,135.91,0.32432474]
[1768026379090,0.31255696,135.97,135.91,6.95482474]
[1768026391096,0.31255696,135.97,135.92,0.32432474]
[1768026394404,0.31255696,135.97,135.92,6.95442474]
[1768026395005,1.46136416,135.99,135.93,0.31794108]
[1768026395206,5.25713733,135.98,135.93,0.31794108]
[1768026395505,0.30562625,135.98,135.93,0.31794108]
[1768026400306,6.6268,135.99,135.93,0.31794108]
[1768026400502,5.26060166,135.98,135.93,0.31794108]
[1768026400707,1.46136416,136.0,135.93,0.31794108]
[1768026400904,5.26052364,135.99,135.93,0.31794108]
[1768026401105,8.08766416,136.0,135.93,0.31794108]
[1768026401305,5.26074141,135.99,135.93,0.31794108]
[1768026401503,8.08766416,136.0,135.93,0.31794108]
[1768026401908,0.30562625,135.99,135.93,0.31794108]
[1768026414725,0.30562625,135.99,135.94,0.33241147]
[1768026426330,0.30562625,135.99,135.91,6.94305552]
[1768026427232,0.32093789,135.98,135.91,6.94305552]
[1768026429729,0.32093789,135.98,135.92,0.31275552]
[1768026436332,0.32093789,135.98,135.92,6.94285552]
[1768026441238,0.32093789,135.98,135.92,0.31275552]
[1768026446238,0.32093789,136.0,135.92,0.31275552]
[1768026447643,0.32093789,136.0,135.94,0.31275552]
[1768026450745,6.626,136.01,135.94,0.31275552]
[1768026450946,5.35037419,136.0,135.94,0.31275552]
[1768026451138,6.626,136.01,135.94,0.31275552]
[1768026451336,5.3502357,136.0,135.94,0.31275552]
[1768026451543,6.94693789,136.01,135.94,0.31275552]
[1768026451846,5.35017108,136.0,135.94,0.31275552]
[1768026452048,6.94693789,136.01,135.94,0.31275552]
[1768026452239,5.35017108,136.0,135.94,0.31275552]
[1768026452440,6.94693789,136.01,135.94,0.31275552]
[1768026456549,212.1276,136.04,135.93,0.31135383]
[1768026456550,0.31592921,135.99,135.93,0.31135383]
[1768026457254,0.31592921,135.99,135.94,0.31135383]